lending/lending_fUSD_20241120
["ID","MTS","AMOUNT","RATE_DAILY","PERIOD"]
[342800516,1732143079668,-500.0,0.00055616,120]
[342800517,1732143079678,-500.0,0.00055616,120]
[342800518,1732143079687,-500.0,0.00055616,120]
[342800519,1732143079697,-500.0,0.00055616,120]
[342800520,1732143079706,-500.0,0.00055616,120]
[342800521,1732143079715,-500.0,0.00055616,120]
[342800522,1732143079725,-1317.76,0.00055616,120]
[342800523,1732143079735,-594.46,0.00055616,120]
[342800524,1732143079744,-1510.86,0.00055616,120]
[342800525,1732143079753,-1617.12,0.00055616,120]
[342800526,1732143079762,-500.0,0.00055616,120]
[342800527,1732143079771,-657.08,0.00055616,120]
[342800528,1732143079780,-628.07,0.00055616,120]
[342800529,1732143079789,-4865.56,0.00055616,120]
[342800530,1732143079798,-500.0,0.00055616,120]
[342800531,1732143079807,-500.0,0.00055616,120]
[342800532,1732143079816,-500.0,0.00055616,120]
[342800533,1732143079827,-500.0,0.00055616,120]
[342800534,1732143079836,-500.0,0.00055616,120]
[342800535,1732143079846,-2529.98,0.00055616,120]
[342800536,1732143079855,-500.0,0.00055616,120]
[342800537,1732143079864,-624.76,0.00055616,120]
[342800538,1732143079874,-635.24,0.00055616,120]
[342800539,1732143079887,-750.97,0.00055616,120]
[342800540,1732143079896,-500.0,0.00055616,120]
[342800541,1732143079906,-500.0,0.00055616,120]
[342800542,1732143079916,-1761.11,0.00055616,120]
[342800543,1732143079927,-500.0,0.00055616,120]
[342800544,1732143079937,-46265.17,0.00055616,120]
[342800545,1732143079948,-500.0,0.00055616,120]
[342800546,1732143079959,-644.52,0.00055616,120]
[342800547,1732143079969,-880.93,0.00055616,120]
[342800548,1732143079980,-500.0,0.00055616,120]
[342800549,1732143079989,-500.0,0.00055616,120]
[342800550,1732143079999,-4390.12,0.00055616,120]
[342800551,1732143080008,-500.0,0.00055616,120]
[342800552,1732143080017,-500.0,0.00055616,120]
[342800553,1732143080027,-3641.91,0.00055616,120]
[342800554,1732143080036,-500.0,0.00055616,120]
[342800555,1732143080045,-500.0,0.00055616,120]
[342800556,1732143080054,-2046.77,0.00055616,120]
[342800557,1732143080064,-500.0,0.00055616,120]
[342800558,1732143080073,-500.0,0.00055616,120]
[342800559,1732143080083,-500.0,0.00055616,120]
[342800560,1732143080092,-500.0,0.00055616,120]
[342800561,1732143080101,-519.31,0.00055616,120]
[342800562,1732143080111,-1582.94,0.00055616,120]
[342800563,1732143080121,-1566.08,0.00055616,120]
[342800564,1732143080130,-500.0,0.00055616,120]
[342800565,1732143080140,-1540.18,0.00055616,120]
[342800566,1732143080150,-500.0,0.00055616,120]
[342800567,1732143080160,-500.0,0.00055616,120]
[342800568,1732143080169,-500.0,0.00055616,120]
[342800569,1732143080180,-500.0,0.00055616,120]
[342800570,1732143080190,-200.0,0.00055616,10]
[342800571,1732143080199,-32182.96,0.00055616,120]
[342800572,1732143080209,-500.0,0.00055616,120]
[342800573,1732143080218,-352.57219799,0.00055616,120]
[342800574,1732143080228,-2395.44,0.00055616,120]
[342800575,1732143080237,-366.66834875,0.00055616,120]
[342800576,1732143080247,-500.0,0.00055616,120]
[342800577,1732143080259,-500.0,0.00055616,120]
[342800578,1732143080268,-500.0,0.00055616,120]
[342800579,1732143080278,-500.0,0.00055616,120]
[342800580,1732143080287,-491.26433407,0.00055616,120]
[342800581,1732143080298,-774.88,0.00055616,120]
[342800582,1732143080308,-500.0,0.00055616,120]
[342800583,1732143080318,-500.0,0.00055616,120]
[342800584,1732143080328,-500.0,0.00055616,120]
[342800585,1732143080340,-500.0,0.00055616,120]
[342800586,1732143080351,-500.0,0.00055616,120]
[342800587,1732143080361,-500.0,0.00055616,120]
[342800588,1732143080370,-3018.97,0.00055616,120]
[342800589,1732143080380,-500.0,0.00055616,120]
[342800590,1732143080389,-1221.56,0.00055616,120]
[342800591,1732143080399,-500.0,0.00055616,120]
[342800592,1732143080411,-949.33,0.00055616,120]
[342800593,1732143080420,-500.0,0.00055616,120]
[342800594,1732143080430,-500.0,0.00055616,120]
[342800595,1732143080439,-500.0,0.00055616,120]
[342800596,1732143080449,-500.0,0.00055616,120]
[342800597,1732143080460,-600.12630218,0.00055616,120]
[342800598,1732143080471,-512.47,0.00055616,120]
[342800599,1732143080480,-500.0,0.00055616,120]
[342800600,1732143080490,-975.73,0.00055616,120]
[342800601,1732143080499,-500.0,0.00055616,120]
[342800602,1732143080510,-1680.87,0.00055616,120]
[342800603,1732143080521,-500.0,0.00055616,120]
[342800604,1732143080531,-2068.97,0.00055616,120]
[342800605,1732143080540,-509.92,0.00055616,120]
[342800606,1732143080550,-500.0,0.00055616,120]
[342800607,1732143080559,-500.0,0.00055616,120]
[342800608,1732143080568,-2386.08,0.00055616,120]
[342800609,1732143080578,-850.0,0.00055616,120]
[342800610,1732143080589,-2587.78,0.00055616,120]
[342800611,1732143080598,-1481.97,0.00055616,120]
[342800612,1732143080609,-500.0,0.00055616,120]
[342800613,1732143080619,-500.0,0.00055616,120]
[342800614,1732143080628,-1478.74,0.00055616,120]
[342800615,1732143080638,-500.0,0.00055616,120]
[342800616,1732143080649,-500.0,0.00055616,120]
[342800617,1732143080660,-580.13,0.00055616,120]
[342800618,1732143080669,-500.0,0.00055616,120]
[342800619,1732143080678,-500.0,0.00055616,120]
[342800620,1732143080687,-500.0,0.00055616,120]
[342800621,1732143080696,-500.0,0.00055616,120]
[342800622,1732143080706,-1753.89,0.00055616,120]
[342800623,1732143080716,-500.0,0.00055616,120]
[342800624,1732143080725,-500.0,0.00055616,120]
[342800625,1732143080734,-816.51,0.00055616,120]
[342800626,1732143080743,-2245.37,0.00055616,120]
[342800627,1732143080752,-10880.09,0.00055616,120]
[342800628,1732143080762,-500.0,0.00055616,120]
[342800629,1732143080771,-500.0,0.00055616,120]
[342800630,1732143080780,-151.0,0.00055616,120]
[342800631,1732143080789,-500.0,0.00055616,120]
[342800632,1732143080798,-3622.31,0.00055616,120]
[342800633,1732143080808,-502.6,0.00055616,120]
[342800634,1732143080818,-500.0,0.00055616,120]
[342800635,1732143080828,-500.0,0.00055616,120]
[342800636,1732143080837,-500.0,0.00055616,120]
[342800637,1732143080846,-500.0,0.00055616,120]
[342800638,1732143080856,-1317.84,0.00055616,120]
[342800639,1732143080866,-1518.89,0.00055616,90]
[342800640,1732143080875,-1643.31,0.00055616,120]
[342800641,1732143080889,-151.0,0.00055616,120]
[342800642,1732143080898,-500.0,0.00055616,120]
[342800643,1732143080909,-500.0,0.00055616,120]
[342800644,1732143080918,-1298.63,0.00055616,120]
[342800645,1732143080929,-505.44974422,0.00055616,120]
[342800646,1732143080938,-943.47,0.00055616,120]
[342800647,1732143080949,-500.0,0.00055616,120]
[342800648,1732143080961,-1649.32,0.00055616,120]
[342800649,1732143080972,-500.0,0.00055616,120]
[342800650,1732143080982,-550.87,0.00055616,120]
[342800651,1732143080992,-5640.48,0.00055616,120]
[342800652,1732143081002,-2158.9,0.00055616,120]
[342800653,1732143081011,-500.0,0.00055616,120]
[342800654,1732143081021,-500.0,0.00055616,120]
[342800655,1732143081031,-1165.26,0.00055616,120]
[342800656,1732143081040,-500.0,0.00055616,120]
[342800657,1732143081050,-1244.51,0.00055616,120]
[342800658,1732143081059,-500.0,0.00055616,120]
[342800659,1732143081069,-250.0,0.00055616,120]
[342800660,1732143081079,-151.0,0.00055616,120]
[342800661,1732143081182,-500.0,0.00055616,120]
[342800662,1732143081194,-9870.91,0.00055616,120]
[342800663,1732143081203,-500.0,0.00055616,120]
[342800664,1732143081212,-500.9256,0.00055616,120]
[342800665,1732143081222,-1110.14,0.00055616,120]
[342800666,1732143081231,-986.78,0.00055616,120]
[342800667,1732143081240,-567.02,0.00055616,120]
[342800668,1732143081250,-500.0,0.00055616,120]
[342800669,1732143081259,-500.9256,0.00055616,120]
[342800670,1732143081270,-500.0,0.00055616,120]
[342800671,1732143081280,-651.9,0.00055616,120]
[342800672,1732143081289,-500.0,0.00055616,120]
[342800673,1732143081298,-500.0,0.00055616,120]
[342800674,1732143081307,-500.0,0.00055616,120]
[342800675,1732143081317,-3368.96,0.00055616,120]
[342800676,1732143081326,-500.0,0.00055616,120]
[342800677,1732143081335,-6243.58,0.00055616,120]
[342800678,1732143081345,-500.0,0.00055616,120]
[342800679,1732143081355,-1221.81,0.00055616,120]
[342800680,1732143081365,-1021.75,0.00055616,120]
[342800681,1732143081376,-1378.96,0.00055616,120]
[342800682,1732143081385,-500.0,0.00055616,120]
[342800683,1732143081395,-500.0,0.00055616,120]
[342800684,1732143081407,-1402.48,0.00055616,120]
[342800685,1732143081417,-500.0,0.00055616,120]
[342800686,1732143081426,-1098.99,0.00055616,7]
[342800687,1732143081436,-2324.89,0.00055616,120]
[342800688,1732143081445,-500.0,0.00055616,120]
[342800689,1732143081455,-500.0,0.00055616,120]
[342800690,1732143081464,-3357.52,0.00055616,120]
[342800691,1732143081473,-500.0,0.00055616,120]
[342800692,1732143081483,-151.0,0.00055616,120]
[342800693,1732143081492,-1503.83,0.00055616,120]
[342800694,1732143081501,-631.52,0.00055616,120]
[342800695,1732143081510,-500.0,0.00055616,120]
[342800696,1732143081519,-610.46,0.00055616,120]
[342800697,1732143081528,-500.0,0.00055616,120]
[342800698,1732143081537,-4485.14,0.00055616,120]
[342800699,1732143081546,-500.0,0.00055616,120]
[342800700,1732143081556,-676.3,0.00055616,120]
[342800701,1732143081566,-1449.22,0.00055616,120]
[342800702,1732143081575,-802.14,0.00055616,120]
[342800703,1732143081584,-1005.77,0.00055616,120]
[342800704,1732143081593,-500.0,0.00055616,120]
[342800705,1732143081602,-62267.29,0.00055616,5]
[342800706,1732143081612,-1000.0,0.00055616,120]
[342800707,1732143081621,-500.0,0.00055616,120]
[342800708,1732143081630,-500.0,0.00055616,120]
[342800709,1732143081640,-500.0,0.00055616,120]
[342800710,1732143081649,-500.0,0.00055616,120]
[342800711,1732143081661,-500.0,0.00055616,120]
[342800712,1732143081670,-1200.11,0.00055616,120]
[342800713,1732143081679,-500.0,0.00055616,120]
[342800714,1732143081689,-4633.73,0.00055616,120]
[342800715,1732143081698,-1462.06,0.00055616,120]
[342800716,1732143081708,-1071.61,0.00055616,120]
[342800717,1732143081717,-1246.53,0.00055616,120]
[342800718,1732143081727,-500.0,0.00055616,120]
[342800719,1732143081736,-340.3392057,0.00055616,120]
[342800720,1732143081746,-665.76,0.00055616,120]
[342800721,1732143081757,-500.0,0.00055616,120]
[342800722,1732143081767,-1619.4,0.00055616,120]
[342800723,1732143081776,-534.16,0.00055616,120]
[342800724,1732143081786,-4155.63,0.00055616,120]
[342800725,1732143081795,-500.0,0.00055616,120]
[342800726,1732143081805,-500.0,0.00055616,120]
[342800727,1732143081815,-500.0,0.00055616,120]
[342800728,1732143081825,-716.03,0.00055616,120]
[342800729,1732143081834,-710.7,0.00055616,120]
[342800730,1732143081843,-1328.15,0.00055616,120]
[342800731,1732143081852,-3842.23,0.00055616,120]
[342800732,1732143081862,-1770.4,0.00055616,120]
[342800733,1732143081871,-151.0,0.00055616,120]
[342800734,1732143081883,-1828.16,0.00055616,120]
[342800735,1732143081892,-734.2,0.00055616,120]
[342800736,1732143081902,-500.0,0.00055616,120]
[342800737,1732143081914,-500.0,0.00055616,120]
[342800738,1732143081925,-208.11453,0.00055616,120]
[342800739,1732143081935,-4113.57,0.00055616,120]
[342800740,1732143081944,-151.0,0.00055616,120]
[342800741,1732143081953,-500.0,0.00055616,120]
[342800742,1732143081964,-3361.09,0.00055616,120]
[342800743,1732143081973,-2336.41,0.00055616,120]
[342800744,1732143081982,-208.11453,0.00055616,120]
[342800745,1732143081991,-914.26,0.00055616,120]
[342800746,1732143082001,-1225.66,0.00055616,120]
[342800747,1732143082010,-2227.59,0.00055616,120]
[342800748,1732143082020,-1199.34,0.00055616,120]
[342800749,1732143082030,-818.4,0.00055616,120]
[342800750,1732143082039,-500.0,0.00055616,120]
[342800751,1732143082049,-500.0,0.00055616,120]
[342800752,1732143082058,-4656.57,0.00055616,120]
[342800753,1732143082067,-945.67,0.00055616,120]
[342800754,1732143082076,-500.0,0.00055616,120]
[342800755,1732143082086,-656.2,0.00055616,120]
[342800756,1732143082095,-1601.15,0.00055616,120]
[342800757,1732143082105,-2590.51,0.00055616,120]
[342800758,1732143082115,-151.0,0.00055616,120]
[342800759,1732143082124,-500.0,0.00055616,120]
[342800760,1732143082134,-609.85,0.00055616,120]
[342800761,1732143082143,-500.0,0.00055616,120]
[342800762,1732143082153,-1087.48,0.00055616,120]
[342800763,1732143082173,-500.0,0.00055616,120]
[342800764,1732143082183,-617.4,0.00055616,120]
[342800765,1732143082193,-500.0,0.00055616,120]
[342800766,1732143082203,-530.21,0.00055616,120]
[342800767,1732143082212,-151.0,0.00055616,120]
[342800768,1732143082222,-1021.22,0.00055616,120]
[342800769,1732143082232,-500.0,0.00055616,120]
[342800770,1732143082242,-4078.12,0.00055616,120]
[342800771,1732143082251,-500.0,0.00055616,120]
[342800772,1732143082261,-185.406492,0.00055616,120]
[342800773,1732143082271,-1271.08,0.00055616,120]
[342800774,1732143082280,-500.0,0.00055616,120]
[342800775,1732143082290,-630.13,0.00055616,120]
[342800776,1732143082299,-1053.42,0.00055616,120]
[342800777,1732143082308,-3054.48,0.00055616,120]
[342800778,1732143082317,-868.75,0.00055616,120]
[342800779,1732143082326,-10737.37,0.00055616,21]
[342800780,1732143082336,-772.0,0.00055616,120]
[342800781,1732143082344,-185.406492,0.00055616,120]
[342800782,1732143082354,-1615.7,0.00055616,120]
[342800783,1732143082363,-500.0,0.00055616,120]
[342800784,1732143082372,-790.82,0.00055616,120]
[342800785,1732143082381,-500.0,0.00055616,120]
[342800786,1732143082390,-603.26637524,0.00055616,120]
[342800787,1732143082399,-500.0,0.00055616,120]
[342800788,1732143082411,-500.0,0.00055616,120]
[342800789,1732143082421,-500.0,0.00055616,120]
[342800790,1732143082431,-500.0,0.00055616,120]
[342800791,1732143082440,-500.0,0.00055616,120]
[342800792,1732143082450,-500.0,0.00055616,120]
[342800793,1732143082458,-2780.77,0.00055616,120]
[342800794,1732143082467,-500.0,0.00055616,120]
[342800795,1732143082477,-3170.06,0.00055616,120]
[342800796,1732143082486,-189.710059,0.00055616,120]
[342800797,1732143082495,-530.51,0.00055616,120]
[342800798,1732143082504,-500.0,0.00055616,120]
[342800799,1732143082514,-814.28,0.00055616,120]
[342800800,1732143082523,-500.0,0.00055616,120]
[342800801,1732143082533,-500.0,0.00055616,120]
[342800802,1732143082544,-500.0,0.00055616,120]
[342800803,1732143082553,-500.0,0.00055616,120]
[342800804,1732143082562,-4610.65,0.00055616,120]
[342800805,1732143082571,-189.710059,0.00055616,120]
[342800806,1732143082581,-1053.94,0.00055616,120]
[342800807,1732143082590,-832.21,0.00055616,120]
[342800808,1732143082600,-500.0,0.00055616,120]
[342800809,1732143082610,-559.12,0.00055616,120]
[342800810,1732143082618,-500.0,0.00055616,120]
[342800811,1732143082627,-962.23,0.00055616,120]
[342800812,1732143082636,-500.0,0.00055616,120]
[342800813,1732143082647,-630.95,0.00055616,120]
[342800814,1732143082660,-500.0,0.00055616,120]
[342800815,1732143082669,-7093.52,0.00055616,120]
[342800816,1732143082678,-1497.99,0.00055616,120]
[342800817,1732143082688,-3030.53,0.00055616,120]
[342800818,1732143082697,-500.0,0.00055616,120]
[342800819,1732143082706,-500.0,0.00055616,120]
[342800820,1732143082715,-2002.76,0.00055616,120]
[342800821,1732143082725,-4996.62,0.00055616,120]
[342800822,1732143082735,-1038.47,0.00055616,120]
[342800823,1732143082745,-500.0,0.00055616,120]
[342800824,1732143082754,-3755.03,0.00055616,120]
[342800825,1732143082764,-500.0,0.00055616,120]
[342800826,1732143082773,-500.0,0.00055616,120]
[342800827,1732143082782,-500.33,0.00055616,120]
[342800828,1732143082791,-500.0,0.00055616,120]
[342800829,1732143082800,-151.0,0.00055616,120]
[342800830,1732143082809,-619.43,0.00055616,120]
[342800831,1732143082818,-6717.87,0.00055616,120]
[342800832,1732143082828,-1395.84,0.00055616,120]
[342800833,1732143082838,-4210.05,0.00055616,120]
[342800834,1732143082847,-500.0,0.00055616,120]
[342800835,1732143082856,-4619.32,0.00055616,120]
[342800836,1732143082866,-2125.56,0.00055616,120]
[342800837,1732143082876,-500.0,0.00055616,120]
[342800838,1732143082890,-500.0,0.00055616,120]
[342800839,1732143082899,-1522.48,0.00055616,120]
[342800840,1732143082909,-500.0,0.00055616,120]
[342800841,1732143082918,-2913.49,0.00055616,120]
[342800842,1732143082929,-151.0,0.00055616,120]
[342800843,1732143082939,-500.0,0.00055616,120]
[342800844,1732143082948,-500.0,0.00055616,120]
[342800845,1732143082960,-500.0,0.00055616,120]
[342800846,1732143082969,-6408.58,0.00055616,60]
[342800847,1732143082979,-163.746603,0.00055616,120]
[342800848,1732143082988,-8536.13,0.00055616,120]
[342800849,1732143082997,-500.0,0.00055616,120]
[342800850,1732143083006,-523.77749429,0.00055616,120]
[342800851,1732143083015,-931.52,0.00055616,120]
[342800852,1732143083024,-5185.83,0.00055616,120]
[342800853,1732143083033,-500.0,0.00055616,120]
[342800854,1732143083044,-873.24,0.00055616,120]
[342800855,1732143083054,-500.0,0.00055616,120]
[342800856,1732143083063,-1838.8,0.00055616,120]
[342800857,1732143083073,-163.746603,0.00055616,120]
[342800858,1732143083083,-500.0,0.00055616,120]
[342800859,1732143083092,-1525.45,0.00055616,120]
[342800860,1732143083102,-1373.0,0.00055616,120]
[342800861,1732143083111,-1659.86,0.00055616,120]
[342800862,1732143083121,-500.0,0.00055616,120]
[342800863,1732143083130,-500.0,0.00055616,120]
[342800864,1732143083140,-5907.77,0.00055616,120]
[342800865,1732143083150,-500.0,0.00055616,120]
[342800866,1732143083160,-647.02,0.00055616,120]
[342800867,1732143083170,-1210.69,0.00055616,120]
[342800868,1732143083178,-436.66312439,0.00055616,120]
[342800869,1732143083187,-500.0,0.00055616,120]
[342800870,1732143083196,-500.0,0.00055616,120]
[342800871,1732143083206,-526.64,0.00055616,120]
[342800872,1732143083216,-12504.89,0.00055616,120]
[342800873,1732143083226,-2076.98,0.00055616,120]
[342800874,1732143083236,-1181.36,0.00055616,120]
[342800875,1732143083246,-677.21,0.00055616,120]
[342800876,1732143083255,-2434.04,0.00055616,120]
[342800877,1732143083265,-1109.03,0.00055616,120]
[342800878,1732143083275,-500.0,0.00055616,120]
[342800879,1732143083284,-500.0,0.00055616,120]
[342800880,1732143083294,-151.0,0.00055616,30]
[342800881,1732143083304,-1099.32,0.00055616,120]
[342800882,1732143083314,-4681.73,0.00055616,120]
[342800883,1732143083323,-651.95,0.00055616,120]
[342800884,1732143083333,-1502.22,0.00055616,120]
[342800885,1732143083342,-500.0,0.00055616,120]
[342800886,1732143083358,-151.0,0.00055616,120]
[342800887,1732143083368,-174.753767,0.00055616,30]
[342800888,1732143083377,-757.95,0.00055616,120]
[342800889,1732143083387,-500.0,0.00055616,120]
[342800890,1732143083396,-986.66,0.00055616,120]
[342800891,1732143083406,-574.07946578,0.00055616,120]
[342800892,1732143083418,-501.38632926,0.00055616,30]
[342800893,1732143083428,-151.0,0.00055616,120]
[342800894,1732143083437,-151.0,0.00055616,120]
[342800895,1732143083447,-880.48,0.00055616,120]
[342800896,1732143083456,-500.0,0.00055616,120]
[342800897,1732143083466,-1166.87,0.00055616,120]
[342800898,1732143083475,-151.0,0.00055616,120]
[342800899,1732143083484,-649.91246816,0.00055616,120]
[342800900,1732143083495,-1450.31,0.00055616,120]
[342800901,1732143083504,-151.0,0.00055616,120]
[342800902,1732143083513,-2144.4,0.00055616,120]
[342800903,1732143083523,-548.14,0.00055616,120]
[342800904,1732143083532,-433.26326726,0.00055616,120]
[342800905,1732143083541,-151.0,0.00055616,120]
[342800906,1732143083551,-1032.14,0.00055616,120]
[342800907,1732143083561,-500.0,0.00055616,120]
[342800908,1732143083570,-14474.38,0.00055616,120]
[342800909,1732143083579,-16729.96,0.00055616,120]
[342800910,1732143083589,-223.614548,0.00055616,7]
[342800911,1732143083599,-500.0,0.00055616,120]
[342800912,1732143083608,-500.0,0.00055616,120]
[342800913,1732143083618,-500.0,0.00055616,120]
[342800914,1732143083626,-500.0,0.00055616,120]
[342800915,1732143083636,-2375.8,0.00055616,120]
[342800916,1732143083645,-500.0,0.00055616,120]
[342800917,1732143083654,-500.0,0.00055616,120]
[342800918,1732143083664,-500.0,0.00055616,120]
[342800919,1732143083674,-533.88,0.00055616,120]
[342800920,1732143083683,-726.78,0.00055616,120]
[342800921,1732143083694,-3517.73,0.00055616,120]
[342800922,1732143083705,-500.0,0.00055616,120]
[342800923,1732143083714,-500.0,0.00055616,120]
[342800924,1732143083723,-500.0,0.00055616,120]
[342800925,1732143083732,-2949.54,0.00055616,120]
[342800926,1732143083741,-500.0,0.00055616,120]
[342800927,1732143083752,-680.36,0.00055616,120]
[342800928,1732143083763,-629.45,0.00055616,120]
[342800929,1732143083772,-500.0,0.00055616,120]
[342800930,1732143083782,-1835.32,0.00055616,120]
[342800931,1732143083791,-500.0,0.00055616,120]
[342800932,1732143083800,-1077.92,0.00055616,120]
[342800933,1732143083811,-567.38,0.00055616,120]
[342800934,1732143083820,-1270.02,0.00055616,120]
[342800935,1732143083830,-1080.78,0.00055616,120]
[342800936,1732143083840,-500.0,0.00055616,120]
[342800937,1732143083849,-500.0,0.00055616,120]
[342800938,1732143083858,-151.0,0.00055616,110]
[342800939,1732143083868,-500.0,0.00055616,120]
[342800940,1732143083879,-794.46,0.00055616,120]
[342800941,1732143083891,-836.47,0.00055616,120]
[342800942,1732143083901,-730.91,0.00055616,120]
[342800943,1732143083912,-1006.93,0.00055616,120]
[342800944,1732143083923,-877.06,0.00055616,120]
[342800945,1732143083932,-873.31,0.00055616,120]
[342800946,1732143083941,-500.0,0.00055616,120]
[342800947,1732143083951,-500.0,0.00055616,120]
[342800948,1732143083962,-5067.66,0.00055616,120]
[342800949,1732143083973,-897.49,0.00055616,120]
[342800950,1732143083983,-500.0,0.00055616,120]
[342800951,1732143083993,-500.0,0.00055616,120]
[342800952,1732143084002,-500.0,0.00055616,120]
[342800953,1732143084012,-615.04,0.00055616,120]
[342800954,1732143084021,-500.0,0.00055616,120]
[342800955,1732143084031,-1213.36,0.00055616,120]
[342800956,1732143084041,-537.82,0.00055616,120]
[342800957,1732143084051,-224.51295521,0.00055616,120]
[342800958,1732143084060,-500.0,0.00055616,120]
[342800959,1732143084070,-500.0,0.00055616,120]
[342800960,1732143084080,-500.0,0.00055616,120]
[342800961,1732143084090,-911.56,0.00055616,120]
[342800962,1732143084100,-1001.49,0.00055616,120]
[342800963,1732143084109,-1621.15,0.00055616,120]
[342800964,1732143084119,-1004.9,0.00055616,120]
[342800965,1732143084129,-500.0,0.00055616,120]
[342800966,1732143084139,-1363.03,0.00055616,120]
[342800967,1732143084149,-670.6,0.00055616,120]
[342800968,1732143084160,-4519.72,0.00055616,120]
[342800969,1732143084170,-681.14,0.00055616,120]
[342800970,1732143084180,-597.02,0.00055616,120]
[342800971,1732143084190,-500.0,0.00055616,120]
[342800972,1732143084201,-1529.3,0.00055616,120]
[342800973,1732143084211,-151.0,0.00055616,120]
[342800974,1732143084221,-500.0,0.00055616,120]
[342800975,1732143084231,-500.0,0.00055616,120]
[342800976,1732143084241,-500.0,0.00055616,120]
[342800977,1732143084251,-5382.48,0.00055616,120]
[342800978,1732143084261,-2209.36,0.00055616,120]
[342800979,1732143084271,-640.41,0.00055616,120]
[342800980,1732143084281,-1045.28,0.00055616,120]
[342800981,1732143084291,-500.0,0.00055616,120]
[342800982,1732143084301,-151.0,0.00055616,120]
[342800983,1732143084311,-500.0,0.00055616,120]
[342800984,1732143084320,-3525.53,0.00055616,120]
[342800985,1732143084329,-5113.62,0.00055616,120]
[342800986,1732143084339,-500.0,0.00055616,120]
[342800987,1732143084349,-5128.91,0.00055616,120]
[342800988,1732143084359,-909.91,0.00055616,120]
[342800989,1732143084368,-500.0,0.00055616,120]
[342800990,1732143084378,-151.0,0.00055726,120]
[342800991,1732143084387,-500.0,0.0005589,120]
[342800992,1732143084397,-500.0,0.0005589,120]
[342800993,1732143084408,-500.0,0.0005589,120]
[342800994,1732143084418,-500.0,0.0005589,120]
[342800995,1732143084428,-500.0,0.0005589,120]
[342800996,1732143084438,-500.0,0.0005589,120]
[342800997,1732143084448,-949.28,0.0005589,120]
[342800998,1732143084460,-588.18,0.0005589,120]
[342800999,1732143084470,-500.0,0.0005589,120]
[342801000,1732143084480,-500.0,0.0005589,120]
[342801001,1732143084489,-500.0,0.0005589,120]
[342801002,1732143084499,-500.0,0.0005589,120]
[342801003,1732143084511,-216.87,0.0005589,7]
[342801004,1732143084520,-500.0,0.0005589,120]
[342801005,1732143084531,-1647.84,0.0005589,120]
[342801006,1732143084541,-500.0,0.0005589,120]
[342801007,1732143084550,-672.22,0.0005589,120]
[342801008,1732143084561,-901.77,0.0005589,120]
[342801009,1732143084571,-500.0,0.0005589,120]
[342801010,1732143084580,-749.97,0.0005589,120]
[342801011,1732143084591,-642.17485936,0.0005589,120]
[342801012,1732143084600,-500.0,0.0005589,120]
[342801013,1732143084610,-1584.28,0.0005589,120]
[342801014,1732143084620,-500.0,0.0005589,120]
[342801015,1732143084630,-500.0,0.0005589,120]